Workbook

Sheet Memória
A1: Ministério da Integração e do Desenvolvimento Regional - MIDR
A2: Companhia de Desenvolvimento dos Vales do São Francisco e do Parnaíba
A3: 5ª Superintendência Regional
A5: MEMORIAL DOS SERVIÇOS
A7: EQUIPE TÉCNICA
A8: Celetistas | B8: Quantidade | C8: Tempo (meses) | D8: Total
A9: Coordenador - Engenheiro Ambiental Pleno | B9: 1 | C9: 12 | D9: =B9*C9 -> 12
A11: Biólogo Pleno | B11: 1 | C11: 12 | D11: =B11*C11 -> 12
A12: Geógrafo Pleno | B12: 1 | C12: 12 | D12: =B12*C12 -> 12
A14: Autônomos | B14: Quantidade | C14: Horas | D14: Total
A15: Advogado Pleno | B15: 1 | C15: 40 | D15: =B15*C15 -> 40
A16: Contador Pleno | B16: 1 | C16: 30 | D16: =B16*C16 -> 30
A17: Técnico Ambiental | B17: 1 | C17: 1200 | D17: =B17*C17 -> 1200
A18: ALIMENTAÇÃO
B19: Quantidade | C19: Tempo (meses) | D19: Total
A20: Vale-alimentação | B20: 3 | C20: 12 | D20: =B20*C20 -> 36
A21: DIÁRIAS PER NOITE
B22: Quant / mês | C22: Tempo (meses) | D22: Total
A23: Diárias per noite - Hospedagem | B23: 10 | C23: 12 | D23: =B23*C23 -> 120
A24: Diárias per noite - Alimentação | B24: 10 | C24: 12 | D24: =B24*C24 -> 120
A25: VEÍCULOS E EQUIPAMENTOS
B26: Quantidade | C26: Tempo (meses) | D26: Total
A27: Fornecimento de veículo leve 75 CV ou superior, com ar-condicionado, incluindo despesas com combustível, óleos, conservação e manutenção | B27: 1 | C27: 12 | D27: =C27*B27 -> 12
A28: Data Show | B28: 1 | C28: 12 | D28: =B28*C28 -> 12
A29: Telefone (celular/internet) (3 unidades) | B29: 4 | C29: 12 | D29: 48
A30: Locação - Notebook conforme especificação (3 unidades) | B30: 4 | C30: 12 | D30: 48
A31: Material de consumo | B31: 4 | C31: 12 | D31: =B31*C31 -> 48

Sheet PFP
E1: Ministério da Integração e do Desenvolvimento Regional - MIDR
E2: Companhia de Desenvolvimento dos Vales do São Francisco e do Parnaíba
E3: 5ª Superintendência Regional
A5: PROPOSTA FINANCEIRA DO PROJETO | J5: CODIGO:
J6: PFP
A7: NOME DA CONSULTORA:
A9: PROJETO: | F9: CONTRATANTE: | J9: BASE: novembro/2023
A10: Serviços de Capacitação para formação de Entidade Gestionária | F10: CODEVASF | J10: CODE: NOV/2023 DNIT: JULHO/2023 ORSE: SETEMBRO/2023
A11: Base | B11: Cod1 | C11: Cod2 | D11: Categoria / Insumo | E11: Uni | F11: Qde | G11: CUD | H11: PU | I11: FatorK | J11: CT | K11: PT
A12: DNIT | B12: MO1 | C12: P8058 | D12: Coordenador - Engenheiro Ambiental Pleno | E12: mês | F12: =Memória!D9 -> 12 | G12: 11266.87 | H12: =ROUND(I12*G12,2) -> 26206.74 | I12: =PFP2.1_FatorKa!$E$40 -> 2.326 | J12: =ROUND(F12*G12,2) -> 135202.44 | K12: =ROUND(F12*H12,2) -> 314480.88
A13: DNIT | B13: MO1 | C13: P8033 | D13: Biólogo Pleno | E13: mês | F13: =Memória!D11 -> 12 | G13: 4233.8 | H13: =ROUND(I13*G13,2) -> 9847.82 | I13: =PFP2.1_FatorKa!$E$40 -> 2.326 | J13: =ROUND(F13*G13,2) -> 50805.6 | K13: =ROUND(F13*H13,2) -> 118173.84
A14: DNIT | B14: MO1 | C14: P8184 | D14: Geógrafo Pleno | E14: mês | F14: =Memória!D12 -> 12 | G14: 4555.45 | H14: =ROUND(I14*G14,2) -> 10595.98 | I14: =PFP2.1_FatorKa!$E$40 -> 2.326 | J14: =ROUND(F14*G14,2) -> 54665.4 | K14: =ROUND(F14*H14,2) -> 127151.76
A15: DNIT | B15: MO1 | C15: P8002 | D15: Advogado Pleno com encargos complementares e adicionais | E15: H | F15: =Memória!D15 -> 40 | G15: =(5709.05+702.89+3.02+287.2+9.98+24.8)/176 -> 38.27806818 | H15: 64.89 | I15: =PFP2.2_FatorKb!E39 -> 1.6953 | J15: 1531.12 | K15: 2595.6
A16: DNIT | B16: MO1 | C16: P8041 | D16: Contador Pleno com encargos complementares e adicionais | E16: H | F16: =Memória!D16 -> 30 | G16: =(5375.95+702.89+2.61+287.2+9.98)/176 -> 36.24221591 | H16: 61.44 | I16: =PFP2.2_FatorKb!E39 -> 1.6953 | J16: 1087.27 | K16: 1843.2
A17: DNIT | B17: MO1 | C17: P8143 | D17: Técnico Ambiental com encargos complementares e adicionais | E17: H | F17: =Memória!D17 -> 1200 | G17: =(2719.96+702.89+27.8+5.45+287.2+9.98+55.83)/176 -> 21.64267045 | H17: =ROUND(I17*G17,2) -> 36.69 | I17: =PFP2.2_FatorKb!E39 -> 1.6953 | J17: =ROUND(F17*G17,2) -> 25971.2 | K17: =ROUND(F17*H17,2) -> 44028
A18: DNIT | B18: EC | C18: E1 | D18: Encargos Complementares e Adicionais (3 profissionais) | E18: mês | F18: =SUM(F12:F14) -> 36 | G18: =3.77+287.2+9.98+24.8 -> 325.75 | H18: 409.08 | I18: =PFP3_FatorKd!$E$20 -> 1.2558 | J18: =ROUND(F18*G18,2) -> 11727 | K18: =ROUND(F18*H18,2) -> 14726.88
A19: DNIT | B19: DA | C19: V1 | D19: Vale-alimentação (3 profissionais) | E19: mês | F19: 36 | G19: 702.89 | H19: =ROUND(I19*G19,2) -> 882.69 | I19: =PFP3_FatorKd!$E$20 -> 1.2558 | J19: 25304.04 | K19: 31776.84
A20: CODE | B20: DP | C20: V2 | D20: Diárias per noite - Hospedagem | E20: dia | F20: 120 | G20: 218.1 | H20: 273.89 | I20: =PFP3_FatorKd!$E$20 -> 1.2558 | J20: 26172 | K20: 32866.8
A21: CODE | B21: DA | C21: V3 | D21: Diárias per noite - Alimentação | E21: dia | F21: 120 | G21: =87/2 -> 43.5 | H21: =ROUND(I21*G21,2) -> 54.63 | I21: =PFP3_FatorKd!$E$20 -> 1.2558 | J21: 5220 | K21: 6555.6
A22: CODE | B22: ='VEÍCULO LEVE'!B5 -> CCU VEÍCULO | C22: V4 | D22: Fornecimento de veículo leve 75 CV ou superior, com ar-condicionado, incluindo despesas com combustível, óleos, conservação e manutenção | E22: mês | F22: =Memória!D27 -> 12 | G22: ='VEÍCULO LEVE'!D49 -> 4569.925695 | H22: =ROUND(I22*G22,2) -> 5738.91 | I22: =PFP3_FatorKd!$E$20 -> 1.2558 | J22: 54839.11 | K22: 68866.92
A23: COTAÇÃO | B23: COT | C23: LO | D23: Locação - Data Show conforme especificação (1 unidades) | E23: Unid. x Mês | F23: 12 | G23: ='Cotação '!B9 -> 292.605 | H23: =ROUND(I23*G23,2) -> 367.45 | I23: =PFP3_FatorKd!$E$20 -> 1.2558 | J23: =ROUND(F23*G23,2) -> 3511.26 | K23: =ROUND(F23*H23,2) -> 4409.4
A24: ORSE | B24: LO | C24: 10558 | D24: Telefone (celular/internet) (4 unidades) | E24: Unid. x Mês | F24: 48 | G24: 89 | H24: =ROUND(I24*G24,2) -> 111.77 | I24: =PFP3_FatorKd!$E$20 -> 1.2558 | J24: =ROUND(F24*G24,2) -> 4272 | K24: =ROUND(F24*H24,2) -> 5364.96
A25: COTAÇÃO | B25: COT | C25: LO | D25: Locação - Notebook conforme especificação (4 unidades) | E25: Unid. x Mês | F25: 48 | G25: ='Cotação '!B15 -> 340 | H25: =ROUND(I25*G25,2) -> 426.97 | I25: =PFP3_FatorKd!$E$20 -> 1.2558 | J25: =ROUND(F25*G25,2) -> 16320 | K25: =ROUND(F25*H25,2) -> 20494.56
A26: DNIT | B26: EM | C26: B8959 | D26: Material de Consumo | E26: ocupante x Mês | F26: 48 | G26: 132.92 | H26: 166.92 | I26: =PFP3_FatorKd!$E$20 -> 1.2558 | J26: =ROUND(F26*G26,2) -> 6380.16 | K26: =ROUND(F26*H26,2) -> 8012.16
A27: TOTAL DOS CUSTOS DIRETOS | H27: =SUM(J12:J26) -> 423008.6
A28: TOTAL DOS ENCARGOS E DISPESAS DIVERSAS | H28: =H29-H27 -> 378338.8
A29: TOTAL DA PROPOSTA | H29: =SUM(K12:K26) -> 801347.4
A30: OBSERVAÇÃO:
A31: Alocar os Insumos MO, com respectivo FatorK, dentro da categoria de vínculo contratual (com ou sem) de cada tipo de profissional
A32: Uni - unidade de medição do insumo;
A33: Qde - Quantidade do Insumo (não pode ocorrer alteração pela Licitante)
A34: CUD - Custo Unitário Direto do Insumo (sem encargos, taxas e impostos, valor não pode ser maior que o Orçado pela Codevasf)
A35: CT - Custo Total (sem encargos, taxas e impostos) - CT = Qde x CUD
A36: FatorK - Taxa de Ressarcimento de Despesas e Encargos (detalhar composição nas Planilhas "PFP2.1", "PFP2.2", "PFP2.3", "PFP3")
A37: PU - Preço Unitário do Insumo (incluído encargos, taxas e impostos) - PU = CUD x FatorK
A38: PT - Preço Total do Insumo (incluído encargos, taxas e impostos) - PT = Qde x PU
A39: Profissionais devem ter experiência em Gestão Ambiental
A40: Encargos complementares e adicionais contempla: assistência médica, seguro de vida, exame ocupacional e EPI's. Preços de referência do SICRO (P8147).
A41: Os valores de diárias e alimentação foram retirados do anexo da N-201 da CODEVASF
A42: COT - Cotação de preço de mercado LO- Locação
A43: MO1 - Mão de obra sobre regime de Celetista, encargos calculados via FatorKa
A44: MO2 - Mão de obra sobre regime de Autônomo, encargos calculados via FatorKb
A45: MO3 - Mão de obra sobre regime de Societários, encargos calculados via FatorKc

Sheet PFP2.1_FatorKa
C1: Ministério da Integração e do Desenvolvimento Regional - MIDR
C2: Companhia de Desenvolvimento dos Vales do São Francisco e do Parnaíba
C3: 5ª Superintendência Regional
A5: DETALHAMENTO DOS ENCARGOS SOCIAIS: Ka | F5: CODIGO:
F6: PFP-2.1
A7: NOME DA CONSULTORA:
A9: PROJETO: | C9: CONTRATANTE: | F9: =PFP!J9 -> BASE: novembro/2023
A10: =PFP!A10 -> Serviços de Capacitação para formação de Entidade Gestionária | C10: CODEVASF | F10: =PFP!J10 -> CODE: NOV/2023 DNIT: JULHO/2023 ORSE: SETEMBRO/2023
A11: Cod | B11: DESCRIÇÃO | E11: % | F11: R$
A12: A | B12: ENCARGOS SOCIAIS BÁSICOS | E12: =ROUND(SUM(E13:E21),4) -> 0.368 | F12: =ROUND(E12*SUMIF(PFP!$B$12:$B$26,"MO1",PFP!$J$12:$J$26),2) -> 99088.8
A13: A1 | B13: INSS | E13: 0.2 | F13: =ROUND(E13*SUMIF(PFP!$B$12:$B$26,"MO1",PFP!$J$12:$J$26),2) -> 53852.61
A14: A2 | B14: SESI | E14: 0.015 | F14: =ROUND(E14*SUMIF(PFP!$B$12:$B$26,"MO1",PFP!$J$12:$J$26),2) -> 4038.95
A15: A3 | B15: SENAI | E15: 0.01 | F15: =ROUND(E15*SUMIF(PFP!$B$12:$B$26,"MO1",PFP!$J$12:$J$26),2) -> 2692.63
A16: A4 | B16: INCRA | E16: 0.002 | F16: =ROUND(E16*SUMIF(PFP!$B$12:$B$26,"MO1",PFP!$J$12:$J$26),2) -> 538.53
A17: A5 | B17: SEBRAE | E17: 0.006 | F17: =ROUND(E17*SUMIF(PFP!$B$12:$B$26,"MO1",PFP!$J$12:$J$26),2) -> 1615.58
A18: A6 | B18: Salário Educação | E18: 0.025 | F18: =ROUND(E18*SUMIF(PFP!$B$12:$B$26,"MO1",PFP!$J$12:$J$26),2) -> 6731.58
A19: A7 | B19: Seguro Contra Acidentes de Trabalho | E19: 0.03 | F19: =ROUND(E19*SUMIF(PFP!$B$12:$B$26,"MO1",PFP!$J$12:$J$26),2) -> 8077.89
A20: A8 | B20: FGTS | E20: 0.08 | F20: =ROUND(E20*SUMIF(PFP!$B$12:$B$26,"MO1",PFP!$J$12:$J$26),2) -> 21541.04
A21: A9 | B21: SECONCI | F21: =ROUND(E21*SUMIF(PFP!$B$12:$B$26,"MO1",PFP!$J$12:$J$26),2) -> 0
A22: B | B22: ENCARGOS SOCIAIS QUE RECEBEM INCIDÊNCIA DE "A" | E22: =ROUND(SUM(E23:E29),4) -> 0.1811 | F22: =ROUND(E22*SUMIF(PFP!$B$12:$B$26,"MO1",PFP!$J$12:$J$26),2) -> 48763.53
A23: B3 | B23: Auxílio Enfermidade | E23: 0.0066 | F23: =ROUND(E23*SUMIF(PFP!$B$12:$B$26,"MO1",PFP!$J$12:$J$26),2) -> 1777.14
A24: B4 | B24: 13º Salário | E24: 0.0833 | F24: =ROUND(E24*SUMIF(PFP!$B$12:$B$26,"MO1",PFP!$J$12:$J$26),2) -> 22429.61
A25: B5 | B25: Licença Paternidade | E25: 0.0005 | F25: =ROUND(E25*SUMIF(PFP!$B$12:$B$26,"MO1",PFP!$J$12:$J$26),2) -> 134.63
A26: B6 | B26: Faltas Justificadas | E26: 0.0056 | F26: =ROUND(E26*SUMIF(PFP!$B$12:$B$26,"MO1",PFP!$J$12:$J$26),2) -> 1507.87
A27: B8 | B27: Auxílio Acidente de Trabalho | E27: 0.0008 | F27: =ROUND(E27*SUMIF(PFP!$B$12:$B$26,"MO1",PFP!$J$12:$J$26),2) -> 215.41
A28: B9 | B28: Férias Gozadas | E28: 0.084 | F28: =ROUND(E28*SUMIF(PFP!$B$12:$B$26,"MO1",PFP!$J$12:$J$26),2) -> 22618.09
A29: B10 | B29: Salário Maternidade | E29: 0.0003 | F29: =ROUND(E29*SUMIF(PFP!$B$12:$B$26,"MO1",PFP!$J$12:$J$26),2) -> 80.78
A30: C | B30: ENCARGOS SOCIAIS QUE NÃO RECEBEM INCIDÊNCIA DE "A" | E30: =ROUND(SUM(E31:E35),4) -> 0.0834 | F30: =ROUND(E30*SUMIF(PFP!$B$12:$B$26,"MO1",PFP!$J$12:$J$26),2) -> 22456.54
A31: C1 | B31: Aviso Prévio Indenizado | E31: 0.0362 | F31: =ROUND(E31*SUMIF(PFP!$B$12:$B$26,"MO1",PFP!$J$12:$J$26),2) -> 9747.32
A32: C2 | B32: Aviso Prévio Trabalhado | E32: 0.0009 | F32: =ROUND(E32*SUMIF(PFP!$B$12:$B$26,"MO1",PFP!$J$12:$J$26),2) -> 242.34
A33: C3 | B33: Férias Indenizadas | E33: 0.0224 | F33: =ROUND(E33*SUMIF(PFP!$B$12:$B$26,"MO1",PFP!$J$12:$J$26),2) -> 6031.49
A34: C4 | B34: Depósito Rescisão Sem Justa Causa | E34: 0.0209 | F34: =ROUND(E34*SUMIF(PFP!$B$12:$B$26,"MO1",PFP!$J$12:$J$26),2) -> 5627.6
A35: C5 | B35: Indenização Adicional | E35: 0.003 | F35: =ROUND(E35*SUMIF(PFP!$B$12:$B$26,"MO1",PFP!$J$12:$J$26),2) -> 807.79
A36: D | B36: REINCIDÊNCIAS | E36: =ROUND(SUM(E37:E38),4) -> 0.0698 | F36: =ROUND(E36*SUMIF(PFP!$B$12:$B$26,"MO1",PFP!$J$12:$J$26),2) -> 18794.56
A37: D1 | B37: Reincidência de "A" sobre "B" | E37: =ROUND(E12*E22,4) -> 0.0666 | F37: =ROUND(E37*SUMIF(PFP!$B$12:$B$26,"MO1",PFP!$J$12:$J$26),2) -> 17932.92
A38: D2 | B38: Reincidência de "A" sobre Aviso Prévio Trabalhado e reincidência do FGTS sobre Aviso Prévio Indenizado | E38: =ROUND((E32*E12)+(E31*E20),4) -> 0.0032 | F38: =ROUND(E38*SUMIF(PFP!$B$12:$B$26,"MO1",PFP!$J$12:$J$26),2) -> 861.64
A39: K1 | B39: ENCARGOS SOCIAIS | E39: =ROUND(E12+E22+E30+E36,4) -> 0.7023 | F39: =ROUND(E39*SUMIF(PFP!$B$12:$B$26,"MO1",PFP!$J$12:$J$26),2) -> 189103.43
A40: Ka | B40: TAXA DE RESSARCIMENTO DE DESPESAS E ENCARGOS SOBRE MO1 | E40: =ROUND((1+E39+PFP3_FatorKd!E16)*(1+PFP3_FatorKd!E15)*(1+PFP3_FatorKd!E11),4) -> 2.326
A41: OBSERVAÇÃO: MO1 CELETISTAS
A42: 1 - DISCRIMINAR OS ENCARGOS SOCIAIS COM SEUS RESPECTIVOS PERCENTUAS TOTALIZANDO OS MESMOS.
A43: 2 - APLICAR O % TOTAL P/ CALCULAR OS E. SOCIAIS INCIDENTES NA MÃO-DE-OBRA - CELETISTAS
A44: Ka - Taxa de Ressarcimento de Despesas e Encargos sobre a Mão de Obra CELETISTAS (incide apenas no Insumo Codigo MO1)
A45: Ka = (1 + K1 + K2) x (1 + K3) x (1 + K4)

Sheet PFP2.2_FatorKb
C1: Ministério da Integração e do Desenvolvimento Regional - MIDR
C2: Companhia de Desenvolvimento dos Vales do São Francisco e do Parnaíba
C3: 5ª Superintendência Regional
A4: DETALHAMENTO DOS ENCARGOS SOCIAIS: Kb | F4: CODIGO:
F5: PFP-2.2
A6: NOME DA CONSULTORA:
A8: PROJETO: | C8: CONTRATANTE: | F8: =PFP!J9 -> BASE: novembro/2023
A9: =PFP!A10 -> Serviços de Capacitação para formação de Entidade Gestionária | C9: CODEVASF | F9: =PFP!J10 -> CODE: NOV/2023 DNIT: JULHO/2023 ORSE: SETEMBRO/2023
A10: Cod | B10: DESCRIÇÃO | E10: % | F10: R$
A11: A | B11: ENCARGOS SOCIAIS BÁSICOS | E11: =ROUND(SUM(E12:E20),4) -> 0.2 | F11: =ROUND(E11*SUMIF(PFP!$B$12:$B$26,"MO2",PFP!$J$12:$J$26),2) -> 0
A12: A1 | B12: INSS | E12: 0 | F12: =ROUND(E12*SUMIF(PFP!$B$12:$B$26,"MO2",PFP!$J$12:$J$26),2) -> 0
A13: A2 | B13: SESI | E13: 0 | F13: =ROUND(E13*SUMIF(PFP!$B$12:$B$26,"MO2",PFP!$J$12:$J$26),2) -> 0
A14: A3 | B14: SENAI | E14: 0 | F14: =ROUND(E14*SUMIF(PFP!$B$12:$B$26,"MO2",PFP!$J$12:$J$26),2) -> 0
A15: A4 | B15: INCRA | E15: 0 | F15: =ROUND(E15*SUMIF(PFP!$B$12:$B$26,"MO2",PFP!$J$12:$J$26),2) -> 0
A16: A5 | B16: SEBRAE | E16: 0 | F16: =ROUND(E16*SUMIF(PFP!$B$12:$B$26,"MO2",PFP!$J$12:$J$26),2) -> 0
A17: A6 | B17: Salário Educação | E17: 0 | F17: =ROUND(E17*SUMIF(PFP!$B$12:$B$26,"MO2",PFP!$J$12:$J$26),2) -> 0
A18: A7 | B18: Seguro Contra Acidentes de Trabalho | E18: 0 | F18: =ROUND(E18*SUMIF(PFP!$B$12:$B$26,"MO2",PFP!$J$12:$J$26),2) -> 0
A19: A8 | B19: FGTS | E19: 0.2 | F19: =ROUND(E19*SUMIF(PFP!$B$12:$B$26,"MO2",PFP!$J$12:$J$26),2) -> 0
A20: A9 | B20: SECONCI | E20: 0 | F20: =ROUND(E20*SUMIF(PFP!$B$12:$B$26,"MO2",PFP!$J$12:$J$26),2) -> 0
A21: B | B21: ENCARGOS SOCIAIS QUE RECEBEM INCIDÊNCIA DE "A" | E21: =ROUND(SUM(E22:E28),4) -> 0 | F21: =ROUND(E21*SUMIF(PFP!$B$12:$B$26,"MO2",PFP!$J$12:$J$26),2) -> 0
A22: B3 | B22: Auxílio Enfermidade | E22: 0 | F22: =ROUND(E22*SUMIF(PFP!$B$12:$B$26,"MO2",PFP!$J$12:$J$26),2) -> 0
A23: B4 | B23: 13º Salário | E23: 0 | F23: =ROUND(E23*SUMIF(PFP!$B$12:$B$26,"MO2",PFP!$J$12:$J$26),2) -> 0
A24: B5 | B24: Licença Paternidade | E24: 0 | F24: =ROUND(E24*SUMIF(PFP!$B$12:$B$26,"MO2",PFP!$J$12:$J$26),2) -> 0
A25: B6 | B25: Faltas Justificadas | E25: 0 | F25: =ROUND(E25*SUMIF(PFP!$B$12:$B$26,"MO2",PFP!$J$12:$J$26),2) -> 0
A26: B8 | B26: Auxílio Acidente de Trabalho | E26: 0 | F26: =ROUND(E26*SUMIF(PFP!$B$12:$B$26,"MO2",PFP!$J$12:$J$26),2) -> 0
A27: B9 | B27: Férias Gozadas | E27: 0 | F27: =ROUND(E27*SUMIF(PFP!$B$12:$B$26,"MO2",PFP!$J$12:$J$26),2) -> 0
A28: B10 | B28: Salário Maternidade | E28: 0 | F28: =ROUND(E28*SUMIF(PFP!$B$12:$B$26,"MO2",PFP!$J$12:$J$26),2) -> 0
A29: C | B29: ENCARGOS SOCIAIS QUE NÃO RECEBEM INCIDÊNCIA DE "A" | E29: =ROUND(SUM(E30:E34),4) -> 0 | F29: =ROUND(E29*SUMIF(PFP!$B$12:$B$26,"MO2",PFP!$J$12:$J$26),2) -> 0
A30: C1 | B30: Aviso Prévio Indenizado | E30: 0 | F30: =ROUND(E30*SUMIF(PFP!$B$12:$B$26,"MO2",PFP!$J$12:$J$26),2) -> 0
A31: C2 | B31: Aviso Prévio Trabalhado | E31: 0 | F31: =ROUND(E31*SUMIF(PFP!$B$12:$B$26,"MO2",PFP!$J$12:$J$26),2) -> 0
A32: C3 | B32: Férias Indenizadas | E32: 0 | F32: =ROUND(E32*SUMIF(PFP!$B$12:$B$26,"MO2",PFP!$J$12:$J$26),2) -> 0
A33: C4 | B33: Depósito Rescisão Sem Justa Causa | E33: 0 | F33: =ROUND(E33*SUMIF(PFP!$B$12:$B$26,"MO2",PFP!$J$12:$J$26),2) -> 0
A34: C5 | B34: Indenização Adicional | E34: 0 | F34: =ROUND(E34*SUMIF(PFP!$B$12:$B$26,"MO2",PFP!$J$12:$J$26),2) -> 0
A35: D | B35: REINCIDÊNCIAS | E35: =ROUND(SUM(E36:E37),4) -> 0 | F35: =ROUND(E35*SUMIF(PFP!$B$12:$B$26,"MO2",PFP!$J$12:$J$26),2) -> 0
A36: D1 | B36: Reincidência de "A" sobre "B" | E36: =ROUND(E11*E21,4) -> 0 | F36: =ROUND(E36*SUMIF(PFP!$B$12:$B$26,"MO2",PFP!$J$12:$J$26),2) -> 0
A37: D2 | B37: Reincidência de "A" sobre Aviso Prévio Trabalhado e reincidência do FGTS sobre Aviso Prévio Indenizado | E37: =ROUND(E11*E31,4)+ROUND(E30*E14,4) -> 0 | F37: =ROUND(E37*SUMIF(PFP!$B$12:$B$26,"MO2",PFP!$J$12:$J$26),2) -> 0
A38: K1 | B38: ENCARGOS SOCIAIS | E38: =ROUND(E11+E21+E29+E35,4) -> 0.2 | F38: =ROUND(E38*SUMIF(PFP!$B$12:$B$26,"MO2",PFP!$J$12:$J$26),2) -> 0
A39: Kb | B39: TAXA DE RESSARCIMENTO DE DESPESAS E ENCARGOS SOBRE MO2 | E39: =ROUND((1+E38+PFP3_FatorKd!E16)*(1+PFP3_FatorKd!E15)*(1+PFP3_FatorKd!E11),4) -> 1.6953
A40: OBSERVAÇÃO: MO2 AUTÔNOMOS
A41: 1 - DISCRIMINAR OS ENCARGOS SOCIAIS COM SEUS RESPECTIVOS PERCENTUAS TOTALIZANDO OS MESMOS.
A42: 2 - APLICAR O % TOTAL P/ CALCULAR OS E. SOCIAIS INCIDENTES NA MÃO-DE-OBRA - AUTÔNOMOS
A43: Kb - Taxa de Ressarcimento de Despesas e Encargos sobre a Mão de Obra AUTONOMOS (incide apenas no Insumo Codigo MO2)
A44: Kb = (1 + K1 + K2) x (1 + K3) x (1 + K4)

Sheet PFP2.3_FatorKc
C1: Ministério da Integração e do Desenvolvimento Regional - MIDR
C2: Companhia de Desenvolvimento dos Vales do São Francisco e do Parnaíba
C3: 5ª Superintendência Regional
A4: DETALHAMENTO DOS ENCARGOS SOCIAIS: Kb | F4: CODIGO:
F5: PFP-2.2
A6: NOME DA CONSULTORA:
A8: PROJETO: | C8: CONTRATANTE: | F8: =PFP!J9 -> BASE: novembro/2023
A9: =PFP!A10 -> Serviços de Capacitação para formação de Entidade Gestionária | C9: CODEVASF | F9: =PFP!J10 -> CODE: NOV/2023 DNIT: JULHO/2023 ORSE: SETEMBRO/2023
A10: Cod | B10: DESCRIÇÃO | E10: % | F10: R$
A11: A | B11: ENCARGOS SOCIAIS BÁSICOS | E11: =ROUND(SUM(E12:E20),4) -> 0 | F11: =ROUND(E11*SUMIF(PFP!$B$12:$B$26,"MO3",PFP!$J$12:$J$26),2) -> 0
A12: A1 | B12: INSS | E12: 0 | F12: =ROUND(E12*SUMIF(PFP!$B$12:$B$26,"MO3",PFP!$J$12:$J$26),2) -> 0
A13: A2 | B13: SESI | E13: 0 | F13: =ROUND(E13*SUMIF(PFP!$B$12:$B$26,"MO3",PFP!$J$12:$J$26),2) -> 0
A14: A3 | B14: SENAI | E14: 0 | F14: =ROUND(E14*SUMIF(PFP!$B$12:$B$26,"MO3",PFP!$J$12:$J$26),2) -> 0
A15: A4 | B15: INCRA | E15: 0 | F15: =ROUND(E15*SUMIF(PFP!$B$12:$B$26,"MO3",PFP!$J$12:$J$26),2) -> 0
A16: A5 | B16: SEBRAE | E16: 0 | F16: =ROUND(E16*SUMIF(PFP!$B$12:$B$26,"MO3",PFP!$J$12:$J$26),2) -> 0
A17: A6 | B17: Salário Educação | E17: 0 | F17: =ROUND(E17*SUMIF(PFP!$B$12:$B$26,"MO3",PFP!$J$12:$J$26),2) -> 0
A18: A7 | B18: Seguro Contra Acidentes de Trabalho | E18: 0 | F18: =ROUND(E18*SUMIF(PFP!$B$12:$B$26,"MO3",PFP!$J$12:$J$26),2) -> 0
A19: A8 | B19: FGTS | E19: 0 | F19: =ROUND(E19*SUMIF(PFP!$B$12:$B$26,"MO3",PFP!$J$12:$J$26),2) -> 0
A20: A9 | B20: SECONCI | E20: 0 | F20: =ROUND(E20*SUMIF(PFP!$B$12:$B$26,"MO3",PFP!$J$12:$J$26),2) -> 0
A21: B | B21: ENCARGOS SOCIAIS QUE RECEBEM INCIDÊNCIA DE "A" | E21: =ROUND(SUM(E22:E28),4) -> 0 | F21: =ROUND(E21*SUMIF(PFP!$B$12:$B$26,"MO3",PFP!$J$12:$J$26),2) -> 0
A22: B3 | B22: Auxílio Enfermidade | E22: 0 | F22: =ROUND(E22*SUMIF(PFP!$B$12:$B$26,"MO3",PFP!$J$12:$J$26),2) -> 0
A23: B4 | B23: 13º Salário | E23: 0 | F23: =ROUND(E23*SUMIF(PFP!$B$12:$B$26,"MO3",PFP!$J$12:$J$26),2) -> 0
A24: B5 | B24: Licença Paternidade | E24: 0 | F24: =ROUND(E24*SUMIF(PFP!$B$12:$B$26,"MO3",PFP!$J$12:$J$26),2) -> 0
A25: B6 | B25: Faltas Justificadas | E25: 0 | F25: =ROUND(E25*SUMIF(PFP!$B$12:$B$26,"MO3",PFP!$J$12:$J$26),2) -> 0
A26: B8 | B26: Auxílio Acidente de Trabalho | E26: 0 | F26: =ROUND(E26*SUMIF(PFP!$B$12:$B$26,"MO3",PFP!$J$12:$J$26),2) -> 0
A27: B9 | B27: Férias Gozadas | E27: 0 | F27: =ROUND(E27*SUMIF(PFP!$B$12:$B$26,"MO3",PFP!$J$12:$J$26),2) -> 0
A28: B10 | B28: Salário Maternidade | E28: 0 | F28: =ROUND(E28*SUMIF(PFP!$B$12:$B$26,"MO3",PFP!$J$12:$J$26),2) -> 0
A29: C | B29: ENCARGOS SOCIAIS QUE NÃO RECEBEM INCIDÊNCIA DE "A" | E29: =ROUND(SUM(E30:E34),4) -> 0 | F29: =ROUND(E29*SUMIF(PFP!$B$12:$B$26,"MO3",PFP!$J$12:$J$26),2) -> 0
A30: C1 | B30: Aviso Prévio Indenizado | E30: 0 | F30: =ROUND(E30*SUMIF(PFP!$B$12:$B$26,"MO3",PFP!$J$12:$J$26),2) -> 0
A31: C2 | B31: Aviso Prévio Trabalhado | E31: 0 | F31: =ROUND(E31*SUMIF(PFP!$B$12:$B$26,"MO3",PFP!$J$12:$J$26),2) -> 0
A32: C3 | B32: Férias Indenizadas | E32: 0 | F32: =ROUND(E32*SUMIF(PFP!$B$12:$B$26,"MO3",PFP!$J$12:$J$26),2) -> 0
A33: C4 | B33: Depósito Rescisão Sem Justa Causa | E33: 0 | F33: =ROUND(E33*SUMIF(PFP!$B$12:$B$26,"MO3",PFP!$J$12:$J$26),2) -> 0
A34: C5 | B34: Indenização Adicional | E34: 0 | F34: =ROUND(E34*SUMIF(PFP!$B$12:$B$26,"MO3",PFP!$J$12:$J$26),2) -> 0
A35: D | B35: REINCIDÊNCIAS | E35: =ROUND(SUM(E36:E37),4) -> 0 | F35: =ROUND(E35*SUMIF(PFP!$B$12:$B$26,"MO3",PFP!$J$12:$J$26),2) -> 0
A36: D1 | B36: Reincidência de "A" sobre "B" | E36: =ROUND(E11*E21,4) -> 0 | F36: =ROUND(E36*SUMIF(PFP!$B$12:$B$26,"MO3",PFP!$J$12:$J$26),2) -> 0
A37: D2 | B37: Reincidência de "A" sobre Aviso Prévio Trabalhado e reincidência do FGTS sobre Aviso Prévio Indenizado | E37: =ROUND(E11*E31,4)+ROUND(E30*E14,4) -> 0 | F37: =ROUND(E37*SUMIF(PFP!$B$12:$B$26,"MO3",PFP!$J$12:$J$26),2) -> 0
A38: K1 | B38: ENCARGOS SOCIAIS | E38: =ROUND(E11+E21+E29+E35,4) -> 0 | F38: =ROUND(E38*SUMIF(PFP!$B$12:$B$26,"MO3",PFP!$J$12:$J$26),2) -> 0
A39: Kb | B39: TAXA DE RESSARCIMENTO DE DESPESAS E ENCARGOS SOBRE MO3 | E39: =ROUND((1+E38+PFP3_FatorKd!E16)*(1+PFP3_FatorKd!E15)*(1+PFP3_FatorKd!E11),4) -> 1.4441
A40: OBSERVAÇÃO: MO3 SOCIETÁRIOS
A41: 1 - DISCRIMINAR OS ENCARGOS SOCIAIS COM SEUS RESPECTIVOS PERCENTUAS TOTALIZANDO OS MESMOS.
A42: 2 - APLICAR O % TOTAL P/ CALCULAR OS E. SOCIAIS INCIDENTES NA MÃO-DE-OBRA - SOCIETÁRIOS
A43: Kc - Taxa de Ressarcimento de Despesas e Encargos sobre a Mão de Obra SOCIETÁRIOS (incide apenas no Insumo Codigo MO3)
A44: Kc = (1 + K1 + K2) x (1 + K3) x (1 + K4)

Sheet PFP3_FatorKd
C1: Ministério da Integração e do Desenvolvimento Regional - MIDR
C2: Companhia de Desenvolvimento dos Vales do São Francisco e do Parnaíba
C3: 5ª Superintendência Regional
A4: DESPESAS FISCAIS E CUSTOS DIVERSOS: Kc | F4: CODIGO:
F5: PFP-3
A6: NOME DA CONSULTORA:
A8: PROJETO: | C8: CONTRATANTE: | F8: =PFP!J9 -> BASE: novembro/2023
A9: =PFP!A10 -> Serviços de Capacitação para formação de Entidade Gestionária | C9: CODEVASF | F9: =PFP!J10 -> CODE: NOV/2023 DNIT: JULHO/2023 ORSE: SETEMBRO/2023
A10: Cod | B10: DESCRIÇÃO1 | D10: % preço2 | E10: % custo4 | F10: R$
A11: K4 | B11: TAXAS E IMPOSTOS | D11: =ROUND(D12+D13+D14,4) -> 0.124 | E11: =ROUND(E12+E13+E14,4) -> 0.1416 | F11: =E11*SUM(SUMIF(PFP!$B$12:$B$26,"MO1",PFP!$J$12:$J$26)*(1+PFP2.1_FatorKa!$E$39)+SUMIF(PFP!$B$12:$B$26,"MO2",PFP!$J$12:$J$26)*(1+PFP2.2_FatorKb!$E$38)+SUMIF(PFP!$B$12:$B$26,"<>MO*",PFP!$J$12:$J$26)+$F$16+$F$15) -> 101633.6299
A12: K4.1 | B12: ISS | D12: 0.05 | E12: =ROUND((1/(1-$D$11))*D12,4) -> 0.0571 | F12: =E12*SUM(SUMIF(PFP!$B$12:$B$26,"MO1",PFP!$J$12:$J$26)*(1+PFP2.1_FatorKa!$E$39)+SUMIF(PFP!$B$12:$B$26,"MO2",PFP!$J$12:$J$26)*(1+PFP2.2_FatorKb!$E$38)+SUMIF(PFP!$B$12:$B$26,"<>MO*",PFP!$J$12:$J$26)+$F$16+$F$15) -> 40983.61771
A13: K4.2 | B13: PIS3 - aliquota efetiva com percentual-desconto | D13: =ROUND(1.65%*0.8,4) -> 0.0132 | E13: =ROUND((1/(1-$D$11))*D13,4) -> 0.0151 | F13: =E13*SUM(SUMIF(PFP!$B$12:$B$26,"MO1",PFP!$J$12:$J$26)*(1+PFP2.1_FatorKa!$E$39)+SUMIF(PFP!$B$12:$B$26,"MO2",PFP!$J$12:$J$26)*(1+PFP2.2_FatorKb!$E$38)+SUMIF(PFP!$B$12:$B$26,"<>MO*",PFP!$J$12:$J$26)+$F$16+$F$15) -> 10838.04952
A14: K4.3 | B14: COFINS3 - aliquota efetiva com percentual-desconto | D14: =ROUND(7.6%*0.8,4) -> 0.0608 | E14: =ROUND((1/(1-$D$11))*D14,4) -> 0.0694 | F14: =E14*SUM(SUMIF(PFP!$B$12:$B$26,"MO1",PFP!$J$12:$J$26)*(1+PFP2.1_FatorKa!$E$39)+SUMIF(PFP!$B$12:$B$26,"MO2",PFP!$J$12:$J$26)*(1+PFP2.2_FatorKb!$E$38)+SUMIF(PFP!$B$12:$B$26,"<>MO*",PFP!$J$12:$J$26)+$F$16+$F$15) -> 49811.96268
A15: K3 | B15: REMUNERAÇÃO DA EMPRESA (LUCRO) | E15: 0.1 | F15: =E15*SUM(SUMIF(PFP!$B$12:$B$26,"MO1",PFP!$J$12:$J$26)*(1+PFP2.1_FatorKa!$E$39)+SUMIF(PFP!$B$12:$B$26,"MO2",PFP!$J$12:$J$26)*(1+PFP2.2_FatorKb!$E$38)+SUMIF(PFP!$B$12:$B$26,"<>MO*",PFP!$J$12:$J$26)+$F$16) -> 65250.1476
A16: K2 | B16: CUSTOS DA ADMINISTRAÇÃO CENTRAL | E16: =ROUND(SUM(E17:E19),4) -> 0.15 | F16: =ROUND(E16*SUMIF(PFP!$B$12:$B$26,"MO*",PFP!$J$12:$J$26),2) -> 40389.45
A17: K2.1 | B17: Custos da administração central da empresa (diretoria, pessoal técnico de apoio e pessoal administrativo não diretamente vinculado à prestação dos serviços) | E17: 0.1 | F17: =ROUND(E17*SUMIF(PFP!$B$12:$B$26,"MO*",PFP!$J$12:$J$26),2) -> 26926.3
A18: K2.2 | B18: Outras despesas que afetam o custo de produção como treinamento, biblioteca, programa de qualidade, programa de benefícios, auditoria interna e externa | E18: 0.03 | F18: =ROUND(E18*SUMIF(PFP!$B$12:$B$26,"MO*",PFP!$J$12:$J$26),2) -> 8077.89
A19: K2.3 | B19: Despesas fixas e variaveis com patrimônio, aluguéis, comunicação, manutenção e transporte não diretamente relacionados com o custo direto dos serviços | E19: 0.02 | F19: =ROUND(E19*SUMIF(PFP!$B$12:$B$26,"MO*",PFP!$J$12:$J$26),2) -> 5385.26
A20: Kd | B20: TAXA RESSARCIMENTO DE DESPESAS SOBRE CUSTOS DIVERSOS | E20: =ROUND((1+E15)*(1+E11),4) -> 1.2558
A21: NOME DO INFORMANTE: | E21: QUALIFICAÇÃO:
A23: ASSINATURA: | E23: DATA:
A25: Observação:
A26: 1 - RELACIONAR OS CUSTOS DE ADMINISTRAÇÃO COM RESPECTIVOS PERCENTUAIS INCIDENTES NA MÃO -DE-OBRA
A27: 1 - DISCRIMINAR OS TRIBUTOS QUE INCIDEM SOBRE OS CUSTOS DA PRESTAÇÃO DOS SERVIÇOS
A28: 2 - K4 = INDICAR % DE CADA TRIBUTO E A SOMA DOS MESMOS (ex: ISS 5% + PIS 1,65% + COFINS 7,60% = 14,25%)
A29: 3 - PIS e COFINS, Regime de Incidencia Acumulativa (0,65% e 3,00% - sem percentual de desconto) ou em Regime de Incidencia Não Acumulativa (1,65% e 7,60% - aplicável percentual de desconto) de acordo com a forma de apuração do lucro no IRPJ. APRESENTAR COMPROVANTES de aproveitamento de créditos tributários dos últimos 12 meses em caso de aplicação de "percentual de desconto".
A30: 4 - AS DESPESAS FISCAIS (K4) INCIDEM SOBRE O TOTAL DA FATURA E NÃO SOBRE OS CUSTOS INCORRIDOS,
A31: DEVENDO SER CALCULADO O K4' APLICANDO-SE A SEGUINTE FÓRMULA:
A32: K4' = { [ 1 / ( 1 - K4) ] - 1 } x 100
A33: =CONCATENATE(" K4' = { [ 1 / ( 1 - ",D11," ) ] - 1 } x 100") -> K4' = { [ 1 / ( 1 - 0,124 ) ] - 1 } x 100
A34: Kd - Taxa de Ressarcimento de Despesas sobre Custos Diversos (incide sobre os Insumos Codigo DP e EM)
A35: Kd = (1 + K3) x (1 + K4)
A36: K2 - Incide sobre o Custo Total (CT) da Mão de Obra (MO* = MO1 + MO2)
A37: K3 - Incide sobre o Custo Total (CT) Mão de Obra com encargos (MO1 x Ka ou MO2 x Kb), demais Custos (DP e EM), e Custos da Administração Central (K2)
A38: K4 - Incide sobre o Custo Total (CT) Mão de Obra com encargos (MO1 x Ka ou MO2 x Kb), demais Custos (DP e EM), e Custos da Administração Central (K2) e Lucro (K3)

Sheet CRO1_Ins-Pro
C1: Ministério da Integração e do Desenvolvimento Regional - MIDR
C2: Companhia de Desenvolvimento dos Vales do São Francisco e do Parnaíba
C3: 5ª Superintendência Regional
A4: INSUMOS POR ETAPA/PRODUTO | O4: CODIGO:
O5: CRO-1
A6: Cod. | B6: Categoria / Insumo | C6: Uni | D6: Qde | E6: CUD | F6: PU | G6: FatorK | H6: 1 | I6: 2 | J6: 3 | K6: 4 | L6: 5 | M6: 6 | N6: 7 | O6: 8 | P6: 9 | Q6: 10 | R6: 11 | S6: 12
G7: Meses | H7: 1 | I7: 1 | J7: 1 | K7: 1 | L7: 1 | M7: 1 | N7: 1 | O7: 1 | P7: 1 | Q7: 1 | R7: 1 | S7: 1
A8: MO1 | B8: Engenheiro Ambiental Pleno - Coordenador | C8: mês | D8: =PFP!F12 -> 12 | E8: =PFP!G12 -> 11266.87 | F8: =PFP!H12 -> 26206.74 | G8: =PFP!I12 -> 2.326 | H8: 1 | I8: 1 | J8: 1 | K8: 1 | L8: 1 | M8: 1 | N8: 1 | O8: 1 | P8: 1 | Q8: 1 | R8: 1 | S8: 1 | T8: =SUM(H8:S8)-D8 -> 0
A9: MO1 | B9: Biólogo Pleno | C9: mês | D9: =PFP!F13 -> 12 | E9: =PFP!G13 -> 4233.8 | F9: =PFP!H13 -> 9847.82 | G9: =PFP!I13 -> 2.326 | H9: 1 | I9: 1 | J9: 1 | K9: 1 | L9: 1 | M9: 1 | N9: 1 | O9: 1 | P9: 1 | Q9: 1 | R9: 1 | S9: 1 | T9: =SUM(H9:S9)-D9 -> 0
A10: MO1 | B10: Geógrafo Pleno | C10: mês | D10: =PFP!F14 -> 12 | E10: =PFP!G14 -> 4555.45 | F10: =PFP!H14 -> 10595.98 | G10: =PFP!I14 -> 2.326 | H10: 1 | I10: 1 | J10: 1 | K10: 1 | L10: 1 | M10: 1 | N10: 1 | O10: 1 | P10: 1 | Q10: 1 | R10: 1 | S10: 1 | T10: 0
A11: MO1 | B11: Advogado Pleno com encargos complementares e adicionais | C11: H | D11: =PFP!F15 -> 40 | E11: =PFP!G15 -> 38.27806818 | F11: =PFP!H15 -> 64.89 | G11: =PFP!I15 -> 1.6953 | H11: 40 | I11: 0 | J11: 0 | K11: 0 | L11: 0 | M11: 0 | N11: 0 | O11: 0 | P11: 0 | Q11: 0 | R11: 0 | S11: 0 | T11: 0
A12: MO1 | B12: Contador Pleno com encargos complementares e adicionais | C12: H | D12: =PFP!F16 -> 30 | E12: =PFP!G16 -> 36.24221591 | F12: =PFP!H16 -> 61.44 | G12: =PFP!I16 -> 1.6953 | H12: 30 | I12: 0 | J12: 0 | K12: 0 | L12: 0 | M12: 0 | N12: 0 | O12: 0 | P12: 0 | Q12: 0 | R12: 0 | S12: 0 | T12: 0
A13: MO1 | B13: Técnico Ambiental com encargos complementares e adicionais | C13: H | D13: =PFP!F17 -> 1200 | E13: =PFP!G17 -> 21.64267045 | F13: =PFP!H17 -> 36.69 | G13: =PFP!I17 -> 1.6953 | H13: 120 | I13: 120 | J13: 120 | K13: 120 | L13: 120 | M13: 120 | N13: 120 | O13: 120 | P13: 120 | Q13: 120 | R13: 0 | S13: 0 | T13: 0
A14: EC | B14: Encargos Complementares e Adicionais (3 profissionais) | C14: mês | D14: =PFP!F18 -> 36 | E14: =PFP!G18 -> 325.75 | F14: =PFP!H18 -> 409.08 | G14: =PFP!I18 -> 1.2558 | H14: 3 | I14: 3 | J14: 3 | K14: 3 | L14: 3 | M14: 3 | N14: 3 | O14: 3 | P14: 3 | Q14: 3 | R14: 3 | S14: 3 | T14: 0
A15: DA | B15: Vale-alimentação (3 profissionais) | C15: mês | D15: =PFP!F19 -> 36 | E15: =PFP!G19 -> 702.89 | F15: =PFP!H19 -> 882.69 | G15: =PFP!I19 -> 1.2558 | H15: 3 | I15: 3 | J15: 3 | K15: 3 | L15: 3 | M15: 3 | N15: 3 | O15: 3 | P15: 3 | Q15: 3 | R15: 3 | S15: 3 | T15: 0
A16: DP | B16: Diárias per noite - Hospedagem | C16: dia | D16: 120 | E16: =PFP!G20 -> 218.1 | F16: =PFP!H20 -> 273.89 | G16: =PFP!I20 -> 1.2558 | H16: 10 | I16: 10 | J16: 10 | K16: 10 | L16: 10 | M16: 10 | N16: 10 | O16: 10 | P16: 10 | Q16: 10 | R16: 10 | S16: 10 | T16: 0
A17: DA | B17: Diárias per noite - Alimentação | C17: dia | D17: 120 | E17: =PFP!G21 -> 43.5 | F17: =PFP!H21 -> 54.63 | G17: =PFP!I21 -> 1.2558 | H17: 10 | I17: 10 | J17: 10 | K17: 10 | L17: 10 | M17: 10 | N17: 10 | O17: 10 | P17: 10 | Q17: 10 | R17: 10 | S17: 10 | T17: 0
A18: CCU VEÍCULO | B18: Fornecimento de veículo leve 75 CV ou superior, com ar-condicionado, incluindo despesas com combustível, óleos, conservação e manutenção | C18: mês | D18: =PFP!F22 -> 12 | E18: =PFP!G22 -> 4569.925695 | F18: =PFP!H22 -> 5738.91 | G18: =PFP!I22 -> 1.2558 | H18: 1 | I18: 1 | J18: 1 | K18: 1 | L18: 1 | M18: 1 | N18: 1 | O18: 1 | P18: 1 | Q18: 1 | R18: 1 | S18: 1 | T18: 0
A19: COT | B19: Locação - Data Show conforme especificação (1 unidade) | C19: Unid. x Mês | D19: =PFP!F23 -> 12 | E19: =PFP!G23 -> 292.605 | F19: =PFP!H23 -> 367.45 | G19: =PFP!I23 -> 1.2558 | H19: 1 | I19: 1 | J19: 1 | K19: 1 | L19: 1 | M19: 1 | N19: 1 | O19: 1 | P19: 1 | Q19: 1 | R19: 1 | S19: 1 | T19: =S191 -> 0
A20: LO | B20: Telefone (celular/internet) (4 unidades) | C20: Unid. x Mês | D20: =PFP!F24 -> 48 | E20: =PFP!G24 -> 89 | F20: =PFP!H24 -> 111.77 | G20: =PFP!I24 -> 1.2558 | H20: 4 | I20: 4 | J20: 4 | K20: 4 | L20: 4 | M20: 4 | N20: 4 | O20: 4 | P20: 4 | Q20: 4 | R20: 4 | S20: 4 | T20: 0
A21: COT | B21: Locação - Notebook conforme especificação (4 unidades) | C21: Unid. x Mês | D21: =PFP!F25 -> 48 | E21: =PFP!G25 -> 340 | F21: =PFP!H25 -> 426.97 | G21: =PFP!I25 -> 1.2558 | H21: 4 | I21: 4 | J21: 4 | K21: 4 | L21: 4 | M21: 4 | N21: 4 | O21: 4 | P21: 4 | Q21: 4 | R21: 4 | S21: 4 | T21: 0
A22: EM | B22: Material de Consumo | C22: ocupante x Mês | D22: =PFP!F26 -> 48 | E22: =PFP!G26 -> 132.92 | F22: =PFP!H26 -> 166.92 | G22: =PFP!I26 -> 1.2558 | H22: 4 | I22: 4 | J22: 4 | K22: 4 | L22: 4 | M22: 4 | N22: 4 | O22: 4 | P22: 4 | Q22: 4 | R22: 4 | S22: 4 | T22: 0
A23: TOTAL | B23: VALOR TOTAL POR PRODUTO | C23: R$ | D23: =SUM(H23:S23) -> 801347.4 | H23: =H49 -> 71581.65 | I23: =I49 -> 67142.85 | J23: 67142.85 | K23: 67142.85 | L23: 67142.85 | M23: 67142.85 | N23: 67142.85 | O23: 67142.85 | P23: 67142.85 | Q23: 67142.85 | R23: 62740.05 | S23: 62740.05
C24: % | D24: =SUM(H24:S24) -> 1.00002 | H24: =ROUND(H23/$D$23,5) -> 0.08933 | I24: =ROUND(I23/$D$23,5) -> 0.08379 | J24: 0.08379 | K24: 0.08379 | L24: 0.08379 | M24: 0.08379 | N24: 0.08379 | O24: 0.08379 | P24: 0.08379 | Q24: 0.08379 | R24: 0.07829 | S24: 0.07829
G32: =PFP!H29-'CRO1_Ins-Pro'!D23 -> 0
F34: =D8*F8 -> 314480.88 | G34: =SUM(H34:S34) -> 314480.88 | H34: =$F$8*H8 -> 26206.74 | I34: 26206.74 | J34: 26206.74 | K34: 26206.74 | L34: 26206.74 | M34: 26206.74 | N34: 26206.74 | O34: 26206.74 | P34: 26206.74 | Q34: 26206.74 | R34: 26206.74 | S34: 26206.74
F35: 118173.84 | G35: =SUM(H35:S35) -> 118173.84 | H35: =$F$9*H9 -> 9847.82 | I35: 9847.82 | J35: 9847.82 | K35: 9847.82 | L35: 9847.82 | M35: 9847.82 | N35: 9847.82 | O35: 9847.82 | P35: 9847.82 | Q35: 9847.82 | R35: 9847.82 | S35: 9847.82
F36: 127151.76 | G36: 127151.76 | H36: =$F$10*H10 -> 10595.98 | I36: 10595.98 | J36: 10595.98 | K36: 10595.98 | L36: 10595.98 | M36: 10595.98 | N36: 10595.98 | O36: 10595.98 | P36: 10595.98 | Q36: 10595.98 | R36: 10595.98 | S36: 10595.98
F37: 2595.6 | G37: 2595.6 | H37: =$F$11*H11 -> 2595.6 | I37: 0 | J37: 0 | K37: 0 | L37: 0 | M37: 0 | N37: 0 | O37: 0 | P37: 0 | Q37: 0 | R37: 0 | S37: 0
F38: 1843.2 | G38: 1843.2 | H38: =$F$12*H12 -> 1843.2 | I38: 0 | J38: 0 | K38: 0 | L38: 0 | M38: 0 | N38: 0 | O38: 0 | P38: 0 | Q38: 0 | R38: 0 | S38: 0
F39: 44028 | G39: =F39 -> 44028 | H39: =$F$13*H13 -> 4402.8 | I39: 4402.8 | J39: 4402.8 | K39: 4402.8 | L39: 4402.8 | M39: 4402.8 | N39: 4402.8 | O39: 4402.8 | P39: 4402.8 | Q39: 4402.8 | R39: 0 | S39: 0
F40: 14726.88 | G40: 14726.88 | H40: =$F$14*H14 -> 1227.24 | I40: 1227.24 | J40: 1227.24 | K40: 1227.24 | L40: 1227.24 | M40: 1227.24 | N40: 1227.24 | O40: 1227.24 | P40: 1227.24 | Q40: 1227.24 | R40: 1227.24 | S40: 1227.24
F41: 31776.84 | G41: 31776.84 | H41: =$F$15*H15 -> 2648.07 | I41: 2648.07 | J41: 2648.07 | K41: 2648.07 | L41: 2648.07 | M41: 2648.07 | N41: 2648.07 | O41: 2648.07 | P41: 2648.07 | Q41: 2648.07 | R41: 2648.07 | S41: 2648.07
F42: 32866.8 | G42: 32866.8 | H42: =F16*H16 -> 2738.9 | I42: =$F$16*I16 -> 2738.9 | J42: 2738.9 | K42: 2738.9 | L42: 2738.9 | M42: 2738.9 | N42: 2738.9 | O42: 2738.9 | P42: 2738.9 | Q42: 2738.9 | R42: 2738.9 | S42: 2738.9
F43: 6555.6 | G43: 6555.6 | H43: =$F$17*H17 -> 546.3 | I43: 546.3 | J43: 546.3 | K43: 546.3 | L43: 546.3 | M43: 546.3 | N43: 546.3 | O43: 546.3 | P43: 546.3 | Q43: 546.3 | R43: 546.3 | S43: 546.3
F44: 68866.92 | G44: 68866.92 | H44: =$F$18*H18 -> 5738.91 | I44: 5738.91 | J44: 5738.91 | K44: 5738.91 | L44: 5738.91 | M44: 5738.91 | N44: 5738.91 | O44: 5738.91 | P44: 5738.91 | Q44: 5738.91 | R44: 5738.91 | S44: 5738.91
F45: 4409.4 | G45: =F45 -> 4409.4 | H45: =$F$19*H19 -> 367.45 | I45: 367.45 | J45: 367.45 | K45: 367.45 | L45: 367.45 | M45: 367.45 | N45: 367.45 | O45: 367.45 | P45: 367.45 | Q45: 367.45 | R45: 367.45 | S45: 367.45
F46: 5364.96 | G46: =F46 -> 5364.96 | H46: =$F$20*H20 -> 447.08 | I46: 447.08 | J46: 447.08 | K46: 447.08 | L46: 447.08 | M46: 447.08 | N46: 447.08 | O46: 447.08 | P46: 447.08 | Q46: 447.08 | R46: 447.08 | S46: 447.08
F47: 20494.56 | G47: =F47 -> 20494.56 | H47: =$F$21*H21 -> 1707.88 | I47: 1707.88 | J47: 1707.88 | K47: 1707.88 | L47: 1707.88 | M47: 1707.88 | N47: 1707.88 | O47: 1707.88 | P47: 1707.88 | Q47: 1707.88 | R47: 1707.88 | S47: 1707.88
F48: 8012.16 | G48: =F48 -> 8012.16 | H48: =$F$22*H22 -> 667.68 | I48: 667.68 | J48: 667.68 | K48: 667.68 | L48: 667.68 | M48: 667.68 | N48: 667.68 | O48: 667.68 | P48: 667.68 | Q48: 667.68 | R48: 667.68 | S48: 667.68
G49: =SUM(G34:G48) -> 801347.4 | H49: 71581.65 | I49: 67142.85 | J49: 67142.85 | K49: 67142.85 | L49: 67142.85 | M49: 67142.85 | N49: 67142.85 | O49: 67142.85 | P49: 67142.85 | Q49: 67142.85 | R49: 62740.05 | S49: 62740.05
H56: =H49-H23 -> 0

Sheet Cotação
A1: Ministério da Integração e do Desenvolvimento Regional - MIDR
A2: Companhia de Desenvolvimento dos Vales do São Francisco e do Parnaíba
A3: 5ª Superintendência Regional
A5: Data Show | B5: Valor (R$)
A7: Painel de Preços - Mediana | B7: 3511.26
A9: média mensal | B9: =B7/12 -> 292.605
A11: Notebook | B11: Valor (R$)
A13: Painel de Preços - Mediana | B13: 4080
A15: média mensal | B15: =B13/12 -> 340
A17: Pneu 175/65/R14
A19: Painel de Preços - Mediana | B19: 312

Sheet VEÍCULO LEVE
C1: Ministério da Integração e do Desenvolvimento Regional - MIDR
C2: Companhia de Desenvolvimento dos Vales do São Francisco e do Parnaíba
C3: 5ª Superintendência Regional
B5: CCU VEÍCULO | C5: FORNECIMENTO DE VEÍCULO LEVE 75 CV OU SUPERIOR, PARA APOIO A FISCALIZAÇÃO, COM AR-CONDICIONADO, INCLUINDO DESPESAS COM COMBUSTÍVEL, ÓLEOS, CONSERVAÇÃO E MANUTENÇÃO.
B9: A | C9: Depreciação mensal do equipamento
B10: E9093/SICRO | C10: Preço de Aquisição | D10: 77415.3493
B11: A2 | C11: Tempo previsto de vida útil (meses) | D11: 36
B12: A3 | C12: Previsão de recup. na venda do bem usado | D12: 0.4
B13: A4 | C13: Custo mensal [A1-(A3xA1)]/A2 | D13: =(D10-(D12*D10))/D11 -> 1290.255822
B15: B | C15: Juros pelo Capital empregado
B16: B1 | C16: Taxa mensal de Juros | D16: 0.05
B17: B2 | C17: Juros s/depreciação/aluguel (B1xA4) | D17: =D16*D13 -> 64.51279108
B19: C | C19: Conservação e manutenção
B20: C1 | C20: Taxa de gastos s/a deprec. Inc. seguros (%) | D20: 1
B21: C2 | C21: Incidência mensal (C1xA4) | D21: =D20*D13 -> 1290.255822
B23: D | C23: Combustível
B24: D1 | C24: Média mensal de quilômetro por veículo | D24: 3000
B25: D2 | C25: Preço do litro de combustível (GASOLINA COMUM SINAPI/AL - 09/23 - cod4222) | D25: 5.88
B26: D3 | C26: Quilômetros rodados com um litro combustivel | D26: 10
B27: D4 | C27: Combustivel (D1/D3)*D2 | D27: =(D24/D26)*D25 -> 1764
B29: E | C29: Lubrificantes
B30: E1 | C30: Quilometragem do Contrato | D30: 36000
B31: E2 | C31: Franquia por troca de óleo (km) | D31: 5000
B32: E3 | C32: Preço do litro de óleo (SINAPI/AL- 09/23 cod 4227) | D32: 28.16
B33: E4 | C33: Quantidade de litros de óleo por troca | D33: 3.5
B34: E5 | C34: Quantidade de dias do Contrato | D34: =D42 -> 365
B35: E6 | C35: Lubrificantes E = (E1*E3*E4*30)/E2*E5 | D35: =(D30*D32*D33*30)/(D31*D34) -> 58.32591781
B37: F | C37: Pneus
B38: F1 | C38: Quilometragem do Contrato | D38: =D30 -> 36000
B39: F2 | C39: Vida do Pneu em quilômetros | D39: 45000
B40: F3 | C40: Quantidade de pneus | D40: 5
B41: F4 | C41: Preço do Pneu | D41: ='Cotação '!B19 -> 312
B42: F5 | C42: Quantidade de dias do contrato | D42: 365
B43: F6 | C43: Pneus = (F1*F3*F4*30)/(F2*F5) | D43: =(D38*D40*D41*30)/(D39*D42) -> 102.5753425
B45: G | C45: Motorista
B46: G1 | C46: Salário com encargos sociais
B48: H | C48: Custo Mensal
C49: Sem Motorista | D49: =D43+D35+D27+D21+D17+D13 -> 4569.925695
C50: Com Motorista
B52: I | C52: Custo Direto p/ km Rodado Mensal
C53: Sem Motorista | D53: =D49/D24 -> 1.523308565
C54: Com Motorista | D54: =D50/D24 -> 0
